bitfinex-derivatives/quotes_BTCF0:USTF0_20241120
["timestamp","ask_amount","ask_price","bid_price","bid_amount"]
[1732121279728,0.4422303,93764.0,93749.0,0.053272]
[1732121279729,0.053272,93750.0,93749.0,0.053272]
[1732121280242,0.4422303,93764.0,93746.0,0.25501409]
[1732121280243,0.05327,93754.0,93746.0,0.053273]
[1732121280431,0.3889663,93764.0,93744.0,0.34340031]
[1732121280432,0.3889663,93764.0,93751.0,0.25515082]
[1732121280630,0.05327,93752.0,93751.0,0.25515082]
[1732121280830,0.05327,93752.0,93744.0,0.34340031]
[1732121280831,0.053273,93748.0,93747.0,0.25515082]
[1732121281036,0.053273,93747.0,93746.0,0.053274]
[1732121281643,0.3608,93754.0,93744.0,0.3158]
[1732121281644,0.053274,93745.0,93744.0,0.3158]
[1732121282128,0.053274,93745.0,93738.0,0.25530032]
[1732121282129,0.053278,93739.0,93738.0,0.25530032]
[1732121282334,0.3608,93751.0,93733.0,0.40067192]
[1732121282335,0.053281,93734.0,93733.0,0.40067192]
[1732121282531,0.053274,93747.0,93746.0,0.053271]
[1732121282739,0.20789894,93769.0,93745.0,0.36734096]
[1732121282945,0.053272,93751.0,93750.0,0.05327]
[1732121283940,0.053273,93748.0,93747.0,0.25528874]
[1732121284156,0.053273,93748.0,93741.0,0.25528874]
[1732121284157,0.16531094,93748.0,93741.0,0.25528874]
[1732121284336,0.11203794,93742.0,93736.0,0.25528874]
[1732121284536,0.11203794,93744.0,93732.0,0.25528874]
[1732121284537,0.053281,93733.0,93732.0,0.25528874]
[1732121284838,0.43211794,93733.0,93720.0,0.31910098]
[1732121285034,0.43211794,93733.0,93718.0,0.31910098]
[1732121285035,0.053289,93719.0,93718.0,0.31910098]
[1732121285245,0.053286,93724.0,93716.0,0.31910098]
[1732121285546,0.05329,93717.0,93716.0,0.31910098]
[1732121285843,0.053291,93716.0,93715.0,0.31910098]
[1732121286042,0.16532894,93716.0,93713.0,0.31910098]
[1732121286251,0.053294,93711.0,93710.0,0.00160056]
[1732121287131,0.053278,93739.0,93710.0,0.00160056]
[1732121287132,0.02836948,93724.0,93710.0,0.00160056]
[1732121287441,0.3608,93726.0,93711.0,0.3608]
[1732121287639,0.053293,93712.0,93711.0,0.3608]
[1732121288047,0.16675922,93722.0,93711.0,0.3608]
[1732121288252,0.053291,93716.0,93715.0,0.053291]
[1732121288743,0.053291,93716.0,93711.0,0.3608]
[1732121288744,0.053289,93721.0,93720.0,0.053288]
[1732121288948,0.414085,93726.0,93725.0,0.053286]
[1732121289446,0.16675922,93740.0,93720.0,0.49938098]
[1732121289641,0.053288,93721.0,93720.0,0.49938098]
[1732121289948,0.16675922,93740.0,93719.0,0.86022098]
[1732121289949,0.3608,93734.0,93719.0,0.86022098]
[1732121290139,0.053284,93729.0,93728.0,0.053284]
[1732121290339,0.053287,93724.0,93723.0,0.053286]
[1732121290533,0.053287,93723.0,93722.0,0.31910098]
[1732121290850,0.16675922,93731.0,93719.0,0.3624]
[1732121291144,0.16675922,93731.0,93719.0,0.3608]
[1732121291550,0.053289,93720.0,93719.0,0.3608]
[1732121291748,0.053289,93720.0,93719.0,0.414089]
[1732121291934,0.053284,93729.0,93719.0,0.3608]
[1732121292137,0.36240089,93736.0,93724.0,0.31832362]
[1732121292437,0.36240089,93736.0,93720.0,0.3088135]
[1732121292438,0.16675922,93730.0,93720.0,0.31832362]
[1732121292633,0.36240089,93736.0,93720.0,0.31832362]
[1732121292842,0.053287,93725.0,93724.0,0.053285]
[1732121293039,0.36240089,93736.0,93720.0,0.31832362]
[1732121293249,0.053287,93722.0,93721.0,0.31832783]
[1732121293441,0.053288,93721.0,93720.0,0.37161683]
[1732121293638,0.36240089,93736.0,93720.0,0.62613857]
[1732121293835,0.053281,93734.0,93725.0,0.053285]
[1732121294055,0.00160089,93736.0,93723.0,0.31832783]
[1732121294247,0.00160089,93736.0,93735.0,0.05328]
[1732121294444,0.05487989,93736.0,93735.0,0.23312]
[1732121294652,0.05487989,93736.0,93735.0,0.17984]
[1732121295035,0.05487989,93736.0,93735.0,0.48851305]
[1732121296240,0.05487989,93736.0,93735.0,0.17984]
[1732121296842,0.05487989,93736.0,93726.0,0.38140347]
[1732121296843,0.053283,93730.0,93729.0,0.31829841]
[1732121297038,0.00160089,93736.0,93727.0,0.1798]
[1732121297242,0.053281,93733.0,93732.0,0.31832994]
[1732121297545,0.053284,93728.0,93727.0,0.49812994]
[1732121297742,0.053284,93728.0,93727.0,0.54179843]
[1732121298339,0.053281,93733.0,93731.0,0.053282]
[1732121298535,0.053282,93732.0,93731.0,0.053282]
[1732121299153,0.00160089,93736.0,93731.0,0.62516106]
[1732121299352,0.00160089,93736.0,93734.0,0.05328]
[1732121299546,0.053281,93733.0,93732.0,0.0438]
[1732121299745,0.053281,93733.0,93732.0,0.62515653]
[1732121299948,0.053281,93733.0,93732.0,0.31835642]
[1732121300151,0.053282,93732.0,93731.0,0.31835642]
[1732121300542,0.053283,93730.0,93729.0,0.31835642]
[1732121300846,0.00262565,93736.0,93729.0,0.31837557]
[1732121301147,0.053284,93728.0,93727.0,0.49817557]
[1732121301451,0.053284,93728.0,93721.0,0.38140347]
[1732121301648,0.053285,93726.0,93725.0,0.31841131]
[1732121301847,0.053285,93726.0,93720.0,0.02824386]
[1732121301848,0.053288,93721.0,93720.0,0.34665517]
[1732121302063,0.053289,93719.0,93717.0,0.31841131]
[1732121302353,0.053292,93714.0,93713.0,0.20805801]
[1732121302557,0.053292,93714.0,93713.0,0.33396522]
[1732121302745,0.414092,93714.0,93713.0,0.33396522]
[1732121302947,0.414092,93714.0,93713.0,0.02825801]
[1732121303247,0.053294,93711.0,93710.0,0.32007022]
[1732121303544,0.053294,93711.0,93710.0,0.00160056]
[1732121303943,0.053294,93711.0,93702.0,0.67926966]
[1732121304139,0.053296,93708.0,93707.0,0.053295]
[1732121304354,0.0439,93730.0,93718.0,0.053289]
[1732121304549,0.053293,93714.0,93713.0,0.053293]
[1732121304755,0.053286,93724.0,93712.0,0.3183874]
[1732121305052,0.053282,93732.0,93731.0,0.053282]
[1732121305463,0.3608,93745.0,93728.0,0.31836391]
[1732121305464,0.053283,93729.0,93728.0,0.31836391]
[1732121305752,0.053283,93729.0,93728.0,0.30502524]
[1732121305945,0.053282,93733.0,93732.0,0.053281]
[1732121306147,0.053282,93733.0,93732.0,0.67595073]
[1732121306355,0.053282,93733.0,93732.0,0.053281]
[1732121306656,0.053282,93733.0,93727.0,0.3608]
[1732121306657,0.053283,93731.0,93729.0,0.31836169]
[1732121306857,0.053283,93731.0,93730.0,0.37164469]
[1732121307155,0.053283,93731.0,93730.0,0.62433634]
[1732121307341,0.053283,93731.0,93727.0,0.3608]
[1732121307342,0.053283,93730.0,93729.0,0.31848076]
[1732121308043,0.3608,93738.0,93729.0,0.31848076]
[1732121308252,0.053282,93732.0,93729.0,0.31848076]
[1732121308555,0.053282,93732.0,93731.0,0.31848076]
[1732121309152,0.053282,93732.0,93731.0,0.37176276]
[1732121309354,0.3608,93740.0,93731.0,0.31857775]
[1732121309551,0.053282,93731.0,93730.0,0.31857775]
[1732121309956,0.414078,93740.0,93730.0,0.30345846]
[1732121310155,0.414078,93740.0,93727.0,0.3608]
[1732121310156,0.414718,93740.0,93731.0,0.31858681]
[1732121310360,0.053282,93732.0,93731.0,0.31858681]
[1732121310550,0.053284,93728.0,93727.0,0.67938681]
[1732121310754,0.053284,93728.0,93727.0,0.31858681]
[1732121310956,0.414078,93740.0,93726.0,0.31858681]
[1732121311157,0.41463801,93740.0,93726.0,0.31858681]
[1732121311363,0.41463801,93740.0,93727.0,0.31858681]
[1732121311548,0.053285,93727.0,93721.0,0.59023865]
[1732121311754,0.053285,93727.0,93726.0,0.053285]
[1732121312060,0.053287,93723.0,93721.0,0.64352665]
[1732121312254,0.053283,93729.0,93727.0,0.053284]
[1732121312477,0.053281,93734.0,93726.0,0.38241964]
[1732121312652,0.053281,93734.0,93732.0,0.053281]
[1732121313062,0.02855367,93743.0,93729.0,0.74321964]
[1732121313063,0.053282,93731.0,93729.0,0.74321964]
[1732121313265,0.05590565,93736.0,93730.0,0.68560144]
[1732121313561,0.00262565,93736.0,93731.0,0.73888344]
[1732121313760,0.00262565,93736.0,93729.0,0.3608]
[1732121313761,0.053282,93731.0,93730.0,0.38241964]
[1732121314062,0.00262565,93736.0,93729.0,0.3608]
[1732121314358,0.053282,93732.0,93731.0,0.31876916]
[1732121314584,0.053282,93732.0,93731.0,0.27376916]
[1732121314863,0.053282,93731.0,93730.0,0.27376916]
[1732121315062,0.053282,93731.0,93729.0,0.3608]
[1732121315063,0.053283,93730.0,93729.0,0.3608]
[1732121317160,0.16536162,93730.0,93722.0,0.38241964]
[1732121317363,0.053287,93722.0,93721.0,0.02899518]
[1732121317559,0.11207862,93723.0,93720.0,0.38283146]
[1732121317760,0.0421,93721.0,93718.0,0.38283582]
[1732121317962,0.0421,93721.0,93714.0,0.38283582]
[1732121318261,0.053291,93716.0,93715.0,0.38287019]
[1732121318462,0.053294,93710.0,93709.0,0.053295]
[1732121318661,0.053294,93710.0,93709.0,0.35779093]
[1732121318864,0.053294,93710.0,93709.0,0.35779584]
[1732121319068,0.053294,93710.0,93709.0,0.38287632]
[1732121319257,0.36140001,93714.0,93708.0,0.38280789]
[1732121319462,0.053295,93708.0,93707.0,0.38280789]
[1732121320064,0.36136001,93714.0,93705.0,0.59109015]
[1732121320261,0.053297,93706.0,93705.0,0.41125015]
[1732121320456,0.053298,93704.0,93699.0,0.3608]
[1732121320770,0.053299,93702.0,93701.0,0.38273627]
[1732121320976,0.3608,93714.0,93699.0,0.38846124]
[1732121320977,0.0533,93700.0,93699.0,0.38846124]
[1732121321664,0.0533,93700.0,93699.0,0.02766124]
[1732121321860,0.0533,93700.0,93692.0,0.00116]
[1732121322055,0.053303,93694.0,93693.0,0.35672895]
[1732121322259,0.053303,93694.0,93687.0,0.44574071]
[1732121322260,0.053305,93691.0,93690.0,0.38256245]
[1732121322454,0.053303,93694.0,93688.0,0.3886274]
[1732121322668,0.053306,93689.0,93688.0,0.3886274]
[1732121323667,0.47287862,93701.0,93688.0,0.3886274]
[1732121323668,0.3608,93701.0,93688.0,0.3886274]
[1732121323863,0.053306,93689.0,93688.0,0.3886274]
[1732121324769,0.053306,93689.0,93688.0,0.00012654]
[1732121325064,0.414106,93689.0,93688.0,0.00012654]
[1732121329868,0.053317,93671.0,93670.0,0.053317]
[1732121330066,0.053317,93671.0,93670.0,0.0286548]
[1732121330265,0.053317,93671.0,93663.0,0.0873]
[1732121330266,0.16539562,93671.0,93663.0,0.0873]
[1732121330576,0.053319,93667.0,93663.0,0.0873]
[1732121330758,0.0534432,93667.0,93664.0,0.07464537]
[1732121331165,0.0534432,93667.0,93665.0,0.05332]
[1732121331364,0.0534432,93667.0,93666.0,0.38866443]
[1732121332557,0.0534432,93667.0,93666.0,0.44198343]
[1732121333067,0.0001242,93667.0,93666.0,0.44198343]
[1732121334373,0.0001242,93667.0,93666.0,0.38866443]
[1732121334570,0.0534432,93667.0,93666.0,0.38866443]
[1732121336272,0.0534432,93667.0,93653.0,0.3584]
[1732121336273,0.053327,93654.0,93653.0,0.053327]
[1732121336461,0.053327,93654.0,93653.0,0.08102323]
[1732121336863,0.053323,93660.0,93658.0,0.053323]
[1732121337069,0.053321,93664.0,93653.0,0.38849623]
[1732121337281,0.053321,93663.0,93661.0,0.053322]
[1732121337465,0.053319,93666.0,93656.0,0.053325]
[1732121337663,0.053323,93659.0,93656.0,0.053325]
[1732121337868,0.053324,93658.0,93656.0,0.053325]
[1732121338671,0.0001242,93667.0,93653.0,0.38849623]
[1732121338863,0.0001242,93667.0,93655.0,0.053325]
[1732121339063,0.053323,93659.0,93655.0,0.053325]
[1732121339460,0.053323,93659.0,93653.0,0.38849623]
[1732121339461,0.0001242,93667.0,93653.0,0.38849623]
[1732121339660,0.0001242,93667.0,93658.0,0.053324]
[1732121339873,0.0001242,93667.0,93653.0,0.38849623]
[1732121340075,0.053323,93660.0,93654.0,0.053326]
[1732121340275,0.0001242,93667.0,93654.0,0.053326]
[1732121340482,0.053322,93662.0,93661.0,0.3608]
[1732121341275,0.0001242,93667.0,93665.0,0.05332]
[1732121341467,0.0001242,93667.0,93661.0,0.3608]
[1732121341668,0.0001242,93667.0,93666.0,0.053319]
[1732121341871,0.0534432,93667.0,93663.0,0.053321]
[1732121342077,0.05332,93664.0,93661.0,0.3608]
[1732121342261,0.0001242,93667.0,93661.0,0.3608]
[1732121342262,0.053322,93662.0,93661.0,0.3608]
[1732121342470,0.0001242,93667.0,93661.0,0.3608]
[1732121342873,0.0001242,93667.0,93663.0,0.053321]
[1732121343179,0.0001242,93667.0,93661.0,0.3608]
[1732121343366,0.05332,93666.0,93662.0,0.053321]
[1732121343765,0.0001242,93667.0,93661.0,0.3608]
[1732121343977,0.053322,93662.0,93661.0,0.3608]
[1732121344589,0.053322,93662.0,93661.0,0.3158]
[1732121345573,0.0001242,93667.0,93666.0,0.053319]
[1732121345774,0.401,93692.0,93668.0,0.053318]
[1732121345972,0.16537762,93702.0,93679.0,0.11207862]
[1732121346185,0.16537762,93702.0,93681.0,0.05331]
[1732121346186,0.053308,93686.0,93681.0,0.05331]
[1732121346370,0.11368025,93695.0,93683.0,0.3608]
[1732121346569,0.00160163,93695.0,93683.0,0.3608]
[1732121346769,0.053309,93684.0,93683.0,0.61517341]
[1732121346969,0.11368025,93695.0,93683.0,0.61517341]
[1732121346970,0.11368025,93695.0,93683.0,0.3608]
[1732121347178,0.11368025,93695.0,93686.0,0.2546835]
[1732121347379,0.053307,93688.0,93687.0,0.2546835]
[1732121347875,0.053307,93688.0,93687.0,0.3079905]
[1732121348066,0.053307,93688.0,93687.0,0.053307]
[1732121349285,0.00160163,93695.0,93693.0,0.053304]
[1732121349872,0.00160163,93695.0,93694.0,0.36129194]
[1732121350074,0.00160163,93695.0,93694.0,0.0427]
[1732121350383,0.00160163,93695.0,93694.0,0.2213]
[1732121350580,0.053293,93713.0,93694.0,0.2213]
[1732121350788,0.053293,93713.0,93707.0,0.30817765]
[1732121351078,0.3608,93718.0,93709.0,0.25488165]
[1732121351299,0.053292,93715.0,93713.0,0.19120136]
[1732121351474,0.3608,93718.0,93714.0,0.19120136]
[1732121351781,0.3608,93718.0,93704.0,0.36070206]
[1732121351782,0.3608,93718.0,93716.0,0.16536962]
[1732121352480,0.3608,93718.0,93717.0,0.29872276]
[1732121352787,0.053286,93724.0,93716.0,0.053291]
[1732121353082,0.11207862,93735.0,93718.0,0.25471869]
[1732121353279,0.053284,93728.0,93718.0,0.30800869]
[1732121353469,0.053288,93722.0,93717.0,0.25471869]
[1732121353670,0.3608,93726.0,93716.0,0.25471869]
[1732121353671,0.05329,93719.0,93716.0,0.25471869]
[1732121353876,0.05329,93718.0,93716.0,0.25471869]
[1732121354179,0.053287,93724.0,93715.0,0.053291]
[1732121354382,0.053287,93724.0,93717.0,0.3608]
[1732121354786,0.053288,93721.0,93717.0,0.3608]
[1732121354977,0.053288,93721.0,93712.0,0.17856]
[1732121354978,0.3608,93721.0,93713.0,0.25471869]
[1732121355171,0.053293,93712.0,93708.0,0.25471869]
[1732121355478,0.0441,93725.0,93706.0,0.25471869]
[1732121355479,0.3608,93715.0,93706.0,0.25471869]
[1732121355683,0.053296,93707.0,93706.0,0.25471869]
[1732121355872,0.053296,93707.0,93705.0,0.25471869]
[1732121356076,0.0437,93714.0,93703.0,0.25471869]
[1732121356380,0.053298,93703.0,93702.0,0.25471869]
[1732121356774,0.053298,93703.0,93700.0,0.3608]
[1732121356775,0.0437,93714.0,93700.0,0.3608]
[1732121357069,0.053299,93702.0,93700.0,0.38877591]
[1732121357272,0.053299,93702.0,93700.0,0.64307132]
[1732121357471,0.053299,93702.0,93700.0,0.38877591]
[1732121357780,0.053303,93695.0,93693.0,0.25428582]
[1732121358080,0.16537762,93702.0,93688.0,0.25428582]
[1732121358286,0.053308,93686.0,93680.0,0.31860206]
[1732121358475,0.053308,93686.0,93681.0,0.31860206]
[1732121358675,0.053308,93686.0,93685.0,0.25432848]
[1732121358970,0.053308,93686.0,93682.0,0.05331]
[1732121359374,0.053308,93686.0,93685.0,0.25431599]
[1732121359669,0.053308,93686.0,93683.0,0.053309]
[1732121359870,0.053312,93679.0,93678.0,0.14116359]
[1732121360072,0.053312,93679.0,93678.0,0.02792497]
[1732121360278,0.053312,93679.0,93674.0,0.31860206]
[1732121360279,0.053314,93676.0,93674.0,0.31860206]
[1732121360468,0.3608,93676.0,93670.0,0.31860206]
[1732121360677,0.053316,93671.0,93670.0,0.0280693]
[1732121360877,0.053318,93668.0,93666.0,0.00124]
[1732121361378,0.053318,93668.0,93656.0,0.11207862]
[1732121361888,0.053318,93668.0,93664.0,0.0012]
[1732121362081,0.053318,93668.0,93667.0,0.02951529]
[1732121364170,0.053313,93677.0,93673.0,0.053315]
[1732121364371,0.053313,93677.0,93674.0,0.11207862]
[1732121364669,0.4016,93685.0,93674.0,0.11207862]
[1732121364873,0.053312,93679.0,93674.0,0.52619362]
[1732121365080,0.053312,93678.0,93674.0,0.16539362]
[1732121365501,0.053312,93678.0,93675.0,0.053314]
[1732121365780,0.053312,93678.0,93667.0,0.39031529]
[1732121365781,0.0408,93685.0,93670.0,0.053317]
[1732121365985,0.053312,93679.0,93671.0,0.053316]
[1732121366476,0.053312,93679.0,93674.0,0.11207862]
[1732121366677,0.053313,93677.0,93674.0,0.11207862]
[1732121366880,0.053318,93669.0,93667.0,0.39031529]
[1732121368088,0.053318,93668.0,93667.0,0.02951529]
[1732121369371,0.053327,93652.0,93651.0,9.636e-05]
[1732121369775,0.053327,93652.0,93651.0,0.02806432]
[1732121369975,0.053327,93652.0,93651.0,9.636e-05]
[1732121373594,0.053324,93658.0,93654.0,0.053326]
[1732121374086,0.04,93662.0,93651.0,9.636e-05]
[1732121374288,0.04,93662.0,93651.0,0.028194]
[1732121374603,0.053325,93657.0,93651.0,0.06652199]
[1732121374793,0.053325,93657.0,93651.0,0.053328]
[1732121374980,0.053325,93657.0,93647.0,0.3608]
[1732121374981,0.00160207,93671.0,93656.0,0.11207862]
[1732121375182,0.00160207,93671.0,93670.0,0.053317]
[1732121375390,0.053318,93669.0,93664.0,0.05332]
[1732121375690,0.053318,93669.0,93665.0,0.053319]
[1732121375691,9.87e-05,93668.0,93665.0,0.053319]
[1732121376189,9.87e-05,93668.0,93659.0,0.1786]
[1732121376389,0.053322,93662.0,93656.0,0.095725]
[1732121376596,9.87e-05,93668.0,93656.0,0.0424]
[1732121376786,0.053326,93655.0,93654.0,0.17871219]
[1732121377391,0.053326,93655.0,93654.0,0.00011219]
[1732121378383,0.08204954,93655.0,93654.0,0.00011219]
[1732121378796,0.05334,93629.0,93628.0,0.414141]
[1732121378995,0.11207862,93635.0,93622.0,0.33993643]
[1732121379294,0.053344,93622.0,93617.0,0.00124]
[1732121379497,0.053344,93622.0,93621.0,0.02985266]
[1732121380496,0.05348195,93622.0,93621.0,0.02985266]
[1732121381092,0.054948,93622.0,93621.0,0.02985266]
[1732121381890,0.001604,93622.0,93621.0,0.44239605]
[1732121382112,0.053328,93650.0,93641.0,0.053334]
[1732121382294,0.053328,93650.0,93647.0,0.05333]
[1732121382493,0.053329,93649.0,93647.0,0.05333]
[1732121382692,0.053329,93649.0,93635.0,0.3608]
[1732121382693,0.053318,93668.0,93642.0,0.053333]
[1732121382997,0.16705913,93660.0,93642.0,0.053333]
[1732121383196,0.16705913,93660.0,93635.0,0.3608]
[1732121383197,0.36087294,93659.0,93635.0,0.3608]
[1732121383505,0.053331,93646.0,93635.0,0.3608]
[1732121383707,0.053331,93646.0,93641.0,0.053333]
[1732121384003,0.053331,93646.0,93635.0,0.3608]
[1732121384004,0.3608,93650.0,93635.0,0.414136]
[1732121384187,0.16705913,93649.0,93635.0,0.38967973]
[1732121384497,0.053331,93645.0,93639.0,0.053334]
[1732121384701,0.053331,93645.0,93635.0,0.38967973]
[1732121384895,0.053329,93650.0,93635.0,0.38967973]
[1732121385101,0.053326,93654.0,93635.0,0.38967973]
[1732121385313,7.294e-05,93659.0,93643.0,0.3608]
[1732121385606,0.053326,93654.0,93644.0,0.0426]
[1732121385793,7.294e-05,93659.0,93648.0,0.053329]
[1732121386301,7.294e-05,93659.0,93644.0,0.0426]
[1732121386511,0.053331,93645.0,93643.0,0.3608]
[1732121387002,0.053329,93649.0,93643.0,0.414132]
[1732121387307,0.053329,93649.0,93647.0,0.05333]
[1732121387491,7.294e-05,93659.0,93643.0,0.3608]
[1732121388104,0.05333,93647.0,93643.0,0.3608]
[1732121388501,0.05339694,93659.0,93643.0,0.3608]
[1732121388708,7.294e-05,93659.0,93651.0,0.3608]
[1732121388896,0.053324,93658.0,93656.0,0.053325]
[1732121389614,0.053324,93658.0,93656.0,0.026325]
[1732121389908,7.294e-05,93659.0,93652.0,0.053327]
[1732121389909,0.053324,93657.0,93652.0,0.053327]
[1732121390200,7.294e-05,93659.0,93658.0,0.053324]
[1732121390997,7.294e-05,93659.0,93653.0,0.053326]
[1732121391299,0.053325,93656.0,93653.0,0.053326]
[1732121391501,7.294e-05,93659.0,93651.0,0.3608]
[1732121391717,0.053327,93652.0,93651.0,0.3608]
[1732121392198,0.16705913,93656.0,93649.0,0.03460686]
[1732121392402,0.16705913,93656.0,93639.0,0.31860206]
[1732121392403,0.3608,93652.0,93639.0,0.31860206]
[1732121392598,0.053334,93640.0,93638.0,0.31860206]
[1732121392800,0.22038413,93656.0,93638.0,0.053335]
[1732121392801,0.25620142,93656.0,93638.0,0.053335]
[1732121393203,0.20287642,93656.0,93637.0,0.31860206]
[1732121393512,0.20287642,93656.0,93634.0,0.67940206]
[1732121393513,0.053337,93635.0,93634.0,0.67940206]
[1732121393700,0.053337,93635.0,93634.0,0.3608]
[1732121394308,0.053337,93635.0,93634.0,0.39668453]
[1732121394496,0.053337,93635.0,93634.0,0.3608]
[1732121394697,0.053338,93633.0,93632.0,0.001602]
[1732121397497,0.3608,93646.0,93625.0,0.3608]
[1732121397695,0.053335,93639.0,93638.0,0.053335]
[1732121398309,0.053339,93634.0,93633.0,0.053338]
[1732121398506,0.053336,93636.0,93633.0,0.3608]
[1732121398808,0.053336,93636.0,93635.0,0.053337]
[1732121399194,0.3608,93654.0,93633.0,0.3608]
[1732121399511,0.01197227,93653.0,93634.0,0.31860206]
[1732121399698,0.053327,93653.0,93638.0,0.31860206]
[1732121399896,0.36136001,93654.0,93638.0,0.31860206]
[1732121400101,0.36136001,93654.0,93644.0,0.053331]
[1732121400102,0.053329,93649.0,93644.0,0.053331]
[1732121400411,0.3608,93654.0,93642.0,0.3608]
[1732121400412,0.053327,93652.0,93642.0,0.3608]
[1732121400600,0.053327,93652.0,93645.0,0.053331]
[1732121400904,0.00060001,93654.0,93644.0,0.31860206]
[1732121401311,0.00060001,93654.0,93650.0,0.053328]
[1732121401505,0.00060001,93654.0,93642.0,0.3608]
[1732121401506,0.00060001,93654.0,93653.0,0.053327]
[1732121401699,0.36140001,93665.0,93645.0,0.31860206]
[1732121401896,0.36140001,93665.0,93642.0,0.3608]
[1732121401897,0.3608,93654.0,93644.0,0.31860206]
[1732121402110,0.3608,93654.0,93642.0,0.3608]
[1732121402111,0.053331,93645.0,93643.0,0.31860206]
[1732121402311,0.16705913,93657.0,93642.0,0.3608]
[1732121402605,0.053332,93643.0,93642.0,0.3608]
[1732121402799,0.414132,93643.0,93636.0,0.31860206]
[1732121403005,0.053338,93633.0,93632.0,0.3608]
[1732121403207,0.053337,93635.0,93632.0,0.44947181]
[1732121403409,0.053337,93636.0,93632.0,0.44947181]
[1732121403601,0.053338,93633.0,93632.0,0.39613281]
[1732121403797,0.053338,93633.0,93632.0,0.03533281]
[1732121404001,0.053338,93633.0,93624.0,0.3608]
[1732121404002,0.053338,93633.0,93627.0,0.31860206]
[1732121404205,0.3608,93643.0,93624.0,0.3608]
[1732121404411,0.3608,93643.0,93625.0,0.053343]
[1732121404603,0.053334,93641.0,93624.0,0.39650115]
[1732121404912,0.39560906,93643.0,93624.0,0.39650115]
[1732121404913,0.053341,93628.0,93624.0,0.39650115]
[1732121405116,0.053334,93640.0,93624.0,0.39650115]
[1732121405117,0.053343,93625.0,93624.0,0.39650115]
[1732121405699,0.053347,93618.0,93617.0,0.31860206]
[1732121405902,0.053348,93615.0,93614.0,0.3608]
[1732121406109,0.053344,93622.0,93614.0,0.3608]
[1732121406313,0.3608,93633.0,93619.0,0.31860206]
[1732121406511,0.053339,93632.0,93628.0,0.053341]
[1732121406718,0.05334,93629.0,93627.0,0.31860206]
[1732121406905,0.00160266,93634.0,93626.0,0.3608]
[1732121407105,0.053341,93627.0,93626.0,0.3608]
[1732121407304,0.053344,93622.0,93621.0,0.31860206]
[1732121407513,0.053341,93627.0,93620.0,0.31860206]
[1732121407514,0.053345,93621.0,93620.0,0.31860206]
[1732121408117,0.053347,93617.0,93616.0,0.31886807]
[1732121408406,7.294e-05,93621.0,93616.0,0.31885202]
[1732121408605,0.053347,93617.0,93616.0,0.31884393]
[1732121409011,7.294e-05,93621.0,93614.0,0.31884393]
[1732121409211,0.05335,93612.0,93610.0,0.37219493]
[1732121409407,7.294e-05,93621.0,93609.0,0.5322541]
[1732121409609,7.294e-05,93621.0,93614.0,0.31885473]
[1732121409809,0.053348,93615.0,93614.0,0.31885473]
[1732121410015,0.053348,93615.0,93614.0,0.31082527]
[1732121410212,7.294e-05,93621.0,93609.0,0.03557017]
[1732121410213,0.053349,93614.0,93613.0,0.31882191]
[1732121410428,7.294e-05,93621.0,93613.0,0.36418221]
[1732121410616,7.294e-05,93621.0,93609.0,0.03557017]
[1732121410617,7.294e-05,93621.0,93616.0,0.053348]
[1732121410921,7.294e-05,93621.0,93620.0,0.053345]
[1732121411315,7.294e-05,93621.0,93620.0,0.36454137]
[1732121411923,0.3608,93633.0,93632.0,0.053339]
[1732121412141,0.3608,93633.0,93632.0,0.6832038]
[1732121412315,0.36136001,93648.0,93633.0,0.053338]
[1732121412631,0.03566288,93650.0,93633.0,0.36436625]
[1732121412831,0.053337,93635.0,93633.0,0.36436625]
[1732121413025,0.03566288,93650.0,93633.0,0.74697012]
[1732121413218,0.05493966,93634.0,93633.0,0.31102825]
[1732121413925,0.00160266,93634.0,93633.0,0.36436625]
[1732121414225,0.00160266,93634.0,93633.0,0.31102825]
[1732121414425,0.05493966,93634.0,93633.0,0.31102825]
[1732121414726,0.00160266,93634.0,93633.0,0.36436625]
[1732121415135,0.00160266,93634.0,93633.0,0.74694463]
[1732121415429,0.05493966,93634.0,93633.0,0.31102825]
[1732121415629,0.05493966,93634.0,93633.0,0.31885581]
[1732121415926,0.05493966,93634.0,93623.0,0.3608]
[1732121415927,0.05334,93630.0,93629.0,0.31885999]
[1732121416128,0.05334,93630.0,93621.0,0.49601999]
[1732121416443,0.0411,93633.0,93621.0,0.31886256]
[1732121416734,0.053343,93625.0,93624.0,0.31886855]
[1732121417255,0.00160266,93634.0,93633.0,0.053338]
[1732121417420,0.00160266,93634.0,93633.0,0.74323332]
[1732121417624,0.00160266,93634.0,93633.0,0.72696399]
[1732121417923,0.230481,93664.0,93638.0,0.053335]
[1732121418118,0.053326,93655.0,93646.0,0.31880572]
[1732121418316,0.053331,93646.0,93645.0,0.31880572]
[1732121418527,0.053331,93646.0,93645.0,0.30733232]
[1732121419024,0.41412,93666.0,93645.0,1.05069918]
[1732121419230,0.00064,93666.0,93657.0,0.053324]
[1732121419426,0.053321,93663.0,93661.0,0.31879263]
[1732121419649,0.0441,93675.0,93667.0,0.030318]
[1732121419929,0.3608,93685.0,93668.0,0.30788435]
[1732121420134,0.414109,93685.0,93670.0,0.22037613]
[1732121420334,0.05331,93682.0,93679.0,0.053312]
[1732121420527,0.05331,93682.0,93670.0,0.89383486]
[1732121420528,0.053306,93690.0,93685.0,0.053308]
[1732121420746,0.0353798,93701.0,93687.0,0.053307]
[1732121421024,0.0441,93708.0,93687.0,0.35939333]
[1732121421225,0.053302,93697.0,93687.0,0.37158139]
[1732121421423,0.0441,93708.0,93687.0,0.30577577]
[1732121421424,0.053767,93688.0,93687.0,0.30577577]
[1732121421728,0.00046,93688.0,93687.0,0.35908277]
[1732121422229,0.053767,93688.0,93687.0,0.03571479]
[1732121422441,0.00046,93688.0,93687.0,0.66659977]
[1732121422729,0.3608,93729.0,93701.0,0.053299]
[1732121422730,0.053293,93713.0,93701.0,0.053299]
[1732121422935,0.053293,93713.0,93711.0,0.25432774]
[1732121423123,0.00160141,93720.0,93707.0,0.19051829]
[1732121423124,0.053294,93710.0,93707.0,0.19051829]
[1732121423325,0.053292,93714.0,93707.0,0.25432774]
[1732121423524,0.36240141,93720.0,93710.0,0.25432774]
[1732121423729,0.053294,93711.0,93709.0,0.25432774]